bitfinex/quotes_SOLUSD_20241019
["timestamp","ask_amount","ask_price","bid_price","bid_amount"]
[1729323408571,6.4695,154.57,154.53,6.4712]
[1729323413090,20.0,154.58,154.54,6.4707]
[1729323425523,20.0,154.6,154.54,6.4707]
[1729323425821,6.4691,154.58,154.54,6.4707]
[1729323437406,15.998,154.61,154.51,23.776884]
[1729323437610,6.4685,154.6,154.55,6.4702]
[1729323441417,6.4688,154.59,154.55,6.4702]
[1729323468936,6.4694,154.58,154.54,16.1767]
[1729323473627,6.4702,154.56,154.51,22.6516]
[1729323474627,6.4702,154.56,154.48,15.0435]
[1729323474628,6.4712,154.53,154.48,6.4733]
[1729323475440,16.5928,154.56,154.46,6.2106]
[1729323475753,26.4707,154.55,154.49,22.6547]
[1729323483836,6.4708,154.54,154.49,22.6547]
[1729323492642,6.4703,154.56,154.48,23.776884]
[1729323492855,6.4703,154.56,154.51,6.472]
[1729323502249,6.4703,154.56,154.47,23.776884]
[1729323502450,6.4703,154.56,154.51,6.4716]
[1729323503469,6.4703,154.56,154.52,6.4716]
[1729323504169,6.4696,154.57,154.52,6.4716]
[1729323504580,6.4696,154.57,154.49,23.776884]
[1729323504778,6.4696,154.57,154.53,6.4711]
[1729323505253,6.4692,154.58,154.53,6.4711]
[1729323516688,6.4692,154.58,154.54,6.4707]
[1729323518971,20.0,154.59,154.54,6.4707]
[1729323519171,26.4688,154.59,154.54,6.4707]
[1729323522691,6.4696,154.57,154.53,22.649]
[1729323522902,6.4696,154.57,154.53,16.1779]
[1729323523992,20.0,154.59,154.52,6.4715]
[1729323524385,6.4698,154.57,154.52,6.4715]
[1729323526492,6.4702,154.56,154.51,6.4719]
[1729323526701,6.4704,154.55,154.51,6.4719]
[1729323535509,26.396,154.59,154.51,6.4719]
[1729323535695,6.47,154.56,154.51,6.4719]
[1729323536898,6.4696,154.57,154.52,6.4713]
[1729323537103,26.396,154.59,154.48,16.505]
[1729323537278,6.4693,154.58,154.53,6.4709]
[1729323539303,6.4693,154.58,154.51,23.776884]
[1729323539513,6.4693,154.58,154.54,6.4706]
[1729323539800,15.3349,154.6,154.54,6.4706]
[1729323540011,26.4688,154.59,154.54,6.4706]
[1729323541308,26.4688,154.59,154.55,6.47]
[1729323541309,20.0,154.59,154.55,6.47]
[1729323541686,26.4688,154.59,154.55,6.47]
[1729323542301,26.4688,154.59,154.54,22.6474]
[1729323546308,26.4688,154.59,154.5,6.4724]
[1729323546309,26.4695,154.57,154.5,6.4724]
[1729323546608,6.4704,154.55,154.5,6.4724]
[1729323552709,6.4708,154.54,154.5,6.4724]
[1729323566117,20.0,154.57,154.5,6.4724]
[1729323566305,6.4707,154.55,154.5,6.4724]
[1729323567703,6.4709,154.54,154.5,6.4724]
[1729323572836,20.0,154.57,154.48,16.1831]
[1729323573013,6.4712,154.53,154.48,22.6561]
[1729323573413,6.4712,154.53,154.49,6.4727]
[1729323574119,6.4709,154.54,154.49,6.4727]
[1729323581043,20.0,154.55,154.48,16.1831]
[1729323581340,6.4724,154.51,154.46,6.474]
[1729323597527,26.6601,154.55,154.45,16.1862]
[1729323597744,6.4722,154.51,154.46,6.474]
[1729323598860,6.4726,154.5,154.45,22.6607]
[1729323604482,32.4374,154.52,154.42,22.192]
[1729323604672,20.0,154.51,154.42,22.6645]
[1729323604871,26.5502,154.51,154.42,22.6645]
[1729323605071,6.474,154.47,154.42,22.6645]
[1729323605387,6.4743,154.46,154.42,16.1891]
[1729323607557,6.4743,154.46,154.42,22.6648]
[1729323609365,34.82928694,154.51,154.42,16.1891]
[1729323609580,6.4733,154.48,154.43,6.4753]
[1729323609763,20.0,154.48,154.41,16.5766]
[1729323611379,20.0,154.48,154.44,6.4748]
[1729323616289,6.4729,154.49,154.44,22.6621]
[1729323617691,26.4724,154.51,154.46,6.4741]
[1729323617990,20.0,154.51,154.48,6.4732]
[1729323618977,5.08205498,154.53,154.48,6.4732]
[1729323619179,20.0,154.52,154.48,6.4732]
[1729323627807,26.4716,154.52,154.48,6.4732]
[1729323630594,20.0,154.52,154.48,6.4732]
[1729323630791,11.55335498,154.53,154.48,6.4732]
[1729323634607,5.08205498,154.53,154.49,6.4726]
[1729323638097,6.4709,154.54,154.46,6.2553]
[1729323638288,6.4705,154.55,154.5,6.4723]
[1729323642195,6.4723,154.51,154.46,22.659]
[1729323642395,6.4723,154.51,154.47,6.4736]
[1729323645218,6.4723,154.51,154.46,16.1849]
[1729323645417,6.4723,154.51,154.46,22.6589]
[1729323646820,6.4727,154.5,154.46,16.1849]
[1729323647926,20.0,154.53,154.49,6.4725]
[1729323648101,20.0,154.53,154.46,16.1845]
[1729323648825,6.472,154.52,154.47,6.4733]
[1729323652211,6.4721,154.51,154.47,6.4733]
[1729323652411,6.4728,154.5,154.46,16.1845]
[1729323660444,20.0,154.53,154.43,32.376]
[1729323660651,6.473,154.49,154.44,6.4749]
[1729323662237,6.4733,154.48,154.43,22.6634]
[1729323665852,26.4728,154.5,154.44,6.4746]
[1729323666056,6.4728,154.5,154.45,16.1862]
[1729323666265,6.4728,154.5,154.45,22.6604]
[1729323666642,6.4728,154.5,154.45,16.1862]
[1729323666842,6.4728,154.5,154.46,6.474]
[1729323670561,20.0,154.53,154.42,6.645]
[1729323670766,6.472,154.52,154.47,6.4736]
[1729323672640,6.472,154.52,154.43,23.776884]
[1729323672951,6.472,154.52,154.48,6.4732]
[1729323673345,20.0,154.54,154.43,23.776884]
[1729323673552,26.4711,154.54,154.48,6.4729]
[1729323676476,6.4713,154.53,154.48,6.4729]
[1729323686292,26.2121,154.54,154.44,16.1873]
[1729323686781,6.4728,154.5,154.45,6.4744]
[1729323689960,6.4728,154.5,154.45,22.6604]
[1729323690666,6.4728,154.5,154.45,16.1863]
[1729323690981,6.4728,154.5,154.46,6.4741]
[1729323700394,26.2121,154.54,154.45,16.1863]
[1729323700582,6.4732,154.49,154.45,16.1863]
[1729323716610,26.2121,154.54,154.41,15.5881]
[1729323716611,20.0,154.52,154.41,15.5881]
[1729323716814,6.4738,154.47,154.42,6.4754]
[1729323717108,32.1344,154.52,154.41,31.7781]
[1729323717109,15.9553,154.52,154.41,15.5881]
[1729323717289,6.4741,154.46,154.42,16.1889]
[1729323718209,6.4741,154.46,154.42,22.6646]
[1729323718814,6.4741,154.46,154.42,16.1889]
[1729323738956,20.0,154.47,154.38,6.5226]
[1729323739127,6.4752,154.44,154.39,46.446084]
[1729323739328,6.4752,154.44,154.39,22.6692]
[1729323742642,6.475,154.44,154.37,15.7658]
[1729323743050,6.475,154.44,154.38,22.6708]
[1729323743754,6.475,154.44,154.39,6.4769]
[1729323746765,6.4761,154.42,154.37,6.4779]
[1729323748151,15.1889,154.44,154.36,16.1958]
[1729323748356,6.4766,154.41,154.36,16.1958]
[1729323749456,6.4766,154.41,154.37,6.4778]
[1729323752458,20.0,154.4,154.3,23.02724977]
[1729323752665,26.477,154.4,154.34,6.4788]
[1729323754280,6.4772,154.39,154.34,6.4788]
[1729323783982,6.4778,154.38,154.33,22.6782]
[1729323786617,20.0,154.42,154.32,23.776884]
[1729323786785,6.4772,154.39,154.34,6.4788]
[1729323787686,20.0,154.42,154.33,6.4795]
[1729323787687,6.4779,154.38,154.33,6.4795]
[1729323796819,6.478,154.37,154.33,6.4795]
[1729323804212,6.4785,154.36,154.32,16.1998]
[1729323804415,22.83716125,154.39,154.31,6.4801]
[1729323804717,6.4789,154.35,154.31,6.4801]
[1729323807414,6.4788,154.35,154.31,6.4801]
[1729323809620,6.4783,154.36,154.31,6.4801]
[1729323809798,22.83716125,154.39,154.29,32.4057]
[1729323810117,22.83716125,154.39,154.3,46.841084]
[1729323810415,29.31436125,154.39,154.33,22.678]
[1729323812717,29.31436125,154.39,154.34,6.479]
[1729323815717,6.4775,154.38,154.34,6.479]
[1729323817017,6.4775,154.38,154.33,16.1988]
[1729323817397,6.4781,154.37,154.33,16.1988]
[1729323821105,6.4775,154.38,154.33,22.6782]
[1729323826028,6.4775,154.38,154.34,6.479]
[1729323828935,14.00216125,154.39,154.34,6.479]
[1729323830138,7.52496125,154.39,154.3,46.841084]
[1729323830428,6.4765,154.41,154.36,6.4779]
[1729323830632,22.3824,154.43,154.38,6.4774]
[1729323830811,6.4759,154.42,154.37,22.6721]
[1729323831424,6.4763,154.41,154.37,22.6721]
[1729323832124,26.4759,154.42,154.37,22.6721]
[1729323832433,6.4753,154.44,154.39,6.4767]
[1729323854452,6.4753,154.44,154.38,16.193]
[1729323854453,6.4762,154.42,154.38,16.193]
[1729323856732,6.4762,154.41,154.38,16.193]
[1729323857743,16.1875,154.44,154.34,38.1876]
[1729323857952,20.0,154.43,154.34,22.6764]
[1729323858251,6.477,154.4,154.35,6.4787]
[1729323859030,6.4772,154.39,154.34,22.6767]
[1729323860031,16.4728,154.41,154.34,16.1976]
[1729323860236,6.4777,154.38,154.34,16.1976]
[1729323867857,16.4728,154.41,154.34,16.1976]
[1729323868045,20.0,154.4,154.31,23.776884]
[1729323868365,26.4768,154.4,154.35,6.4786]
[1729323869446,6.4771,154.39,154.35,6.4786]
[1729323869657,20.0,154.4,154.35,6.4786]
[1729323869857,6.4771,154.39,154.35,6.4786]
[1729323871764,20.0,154.4,154.35,6.4786]
[1729323872568,26.4768,154.4,154.35,6.4786]
[1729323878061,6.4768,154.4,154.35,6.4786]
[1729323890587,6.4774,154.39,154.34,22.6765]
[1729323897480,16.4728,154.41,154.34,16.1974]
[1729323897788,6.4778,154.38,154.34,16.1974]
[1729323899180,16.4728,154.41,154.33,6.4795]
[1729323899393,6.4781,154.37,154.33,6.4795]
[1729323904795,16.4728,154.41,154.31,16.2007]
[1729323904962,20.0,154.39,154.31,22.681]
[1729323906612,6.4786,154.36,154.31,22.681]
[1729323907770,15.604,154.38,154.27,32.4105]
[1729323907982,15.604,154.38,154.28,30.258184]
[1729323908193,15.604,154.38,154.29,6.4812]
[1729323908194,6.4796,154.34,154.29,6.4812]
[1729323910896,6.4796,154.33,154.29,6.4812]
[1729323914400,6.4796,154.33,154.28,6.4816]
[1729323916205,6.4796,154.33,154.27,48.6148]
[1729323916379,6.4796,154.33,154.29,6.4812]
[1729323926005,20.0,154.36,154.29,6.4812]
[1729323926306,6.4793,154.34,154.29,6.4812]
[1729323927108,20.0,154.36,154.29,6.4812]
[1729323927309,6.4797,154.33,154.29,6.4812]
[1729323928981,20.0,154.36,154.29,6.4812]
[1729323929201,6.4792,154.34,154.29,6.4812]
[1729323934113,20.0,154.36,154.27,32.4105]
[1729323934114,6.4788,154.35,154.27,32.4105]
[1729323934319,6.4788,154.35,154.31,6.4804]
[1729323935009,20.0,154.37,154.28,23.776884]
[1729323935214,26.4781,154.37,154.32,6.4798]
[1729323935596,6.4785,154.36,154.32,6.4798]
[1729323935998,6.4785,154.36,154.28,23.776884]
[1729323936196,6.4785,154.36,154.31,6.4803]
[1729323941025,20.0,154.37,154.31,6.4803]
[1729323941205,6.4788,154.35,154.31,6.4803]
[1729323946600,20.0,154.37,154.3,16.2022]
[1729323946800,6.4792,154.34,154.3,16.2022]
[1729323954738,6.4798,154.33,154.28,6.4816]
[1729323960731,6.4795,154.34,154.29,6.4812]
[1729323962719,26.4782,154.37,154.32,6.48]
[1729323962908,6.4782,154.37,154.32,6.48]
[1729323963532,22.0818,154.38,154.28,23.776884]
[1729323964140,15.604,154.38,154.28,23.776884]
[1729323964324,13.21059159,154.4,154.35,6.4787]
[1729323964525,6.4772,154.39,154.34,6.4791]
[1729323965731,20.0,154.4,154.32,16.2001]
[1729323965923,6.4778,154.38,154.32,16.2001]
[1729323967419,6.4778,154.38,154.33,6.4795]
[1729323969542,42.6674,154.41,154.32,16.2001]
[1729323969748,36.1912,154.41,154.32,22.68]
[1729323969922,6.4779,154.38,154.32,22.68]
[1729323970839,6.4779,154.38,154.33,6.4796]
[1729323971349,6.4776,154.38,154.33,6.4793]
[1729323972330,6.4776,154.38,154.33,22.6783]
[1729323992938,20.0,154.39,154.33,16.199]
[1729323993141,15.6397,154.37,154.3,22.6827]
[1729323993472,6.4786,154.36,154.3,22.6827]
[1729323993643,6.4786,154.36,154.31,6.48]
[1729324008585,22.28152326,154.37,154.25,22.3477]
[1729324008764,13.11982326,154.37,154.32,6.4796]
[1729324012279,6.478,154.37,154.32,6.4796]
[1729324017685,6.478,154.37,154.29,22.8995]
[1729324017881,20.0,154.39,154.3,32.4044]
[1729324018080,6.4772,154.39,154.34,6.4788]
[1729324021281,6.4767,154.4,154.35,6.4784]
[1729324027091,6.4761,154.42,154.33,23.776884]
[1729324027393,6.4761,154.42,154.37,6.4775]
[1729324031395,6.38115869,154.42,154.37,6.4775]
[1729324034396,6.72205366,154.44,154.36,16.195]
[1729324034585,6.4767,154.4,154.36,16.195]
[1729324038701,6.4767,154.4,154.36,22.6732]
[1729324039905,6.4767,154.4,154.36,22.1732]
[1729324041202,6.476,154.42,154.37,6.4777]
[1729324058309,6.476,154.42,154.38,6.4775]
[1729324059498,20.0,154.43,154.39,6.477]
[1729324059818,13.19735366,154.44,154.39,6.477]
[1729324061494,6.72205366,154.44,154.39,6.477]
[1729324061803,6.4754,154.43,154.39,6.477]
[1729324063124,13.19705366,154.44,154.39,6.477]
[1729324063410,6.72205366,154.44,154.36,23.776884]
[1729324064013,20.0,154.44,154.36,23.776884]
[1729324064410,6.4755,154.43,154.38,6.4771]
[1729324071003,20.0,154.44,154.36,23.776884]
[1729324071320,26.4751,154.44,154.39,6.4768]
[1729324071520,6.3773,154.47,154.36,23.776884]
[1729324071521,6.3773,154.47,154.36,45.602284]
[1729324071723,6.4741,154.46,154.4,6.4763]
[1729324074510,6.4741,154.46,154.41,6.4762]
[1729324074747,6.4746,154.45,154.41,6.4762]
[1729324075224,6.4746,154.45,154.4,6.4765]
[1729324087344,20.0,154.44,154.36,22.6144]
[1729324087551,6.4765,154.41,154.37,6.4779]
[1729324088521,20.0,154.44,154.36,16.1956]
[1729324088840,6.4764,154.41,154.36,22.6738]
[1729324092032,6.4767,154.4,154.36,16.1956]
[1729324093622,6.4767,154.4,154.36,22.6738]
[1729324095850,6.4762,154.41,154.36,22.6738]
[1729324097147,6.4758,154.43,154.37,22.6724]
[1729324098361,6.4758,154.43,154.38,6.4772]
[1729324103331,6.4758,154.42,154.38,6.4772]
[1729324104644,16.367,154.45,154.41,6.4759]
[1729324104956,4.89210617,154.48,154.41,6.4759]
[1729324105160,6.4747,154.45,154.41,6.4759]
[1729324105757,6.4747,154.45,154.4,22.6679]
[1729324147987,24.89210617,154.48,154.37,54.5517]
[1729324148192,6.4749,154.45,154.4,6.4766]
[1729324151780,20.0,154.46,154.41,6.4761]
[1729324152103,6.4742,154.46,154.42,6.4756]
[1729324152403,4.89210617,154.48,154.42,6.4756]
[1729324152404,6.4738,154.47,154.42,6.4756]
[1729324154407,6.4738,154.47,154.43,6.4753]
[1729324154613,3.36909529,154.51,154.42,23.776884]
[1729324154780,16.2094,154.53,154.42,23.776884]
[1729324154781,19.57849529,154.53,154.42,23.776884]
[1729324155585,16.2094,154.53,154.42,23.776884]
[1729324156202,20.0,154.52,154.42,23.776884]
[1729324156393,20.0,154.5,154.46,6.4741]
[1729324160519,26.4724,154.5,154.46,6.4741]
[1729324163098,13.93716423,154.51,154.46,6.4741]
[1729324171225,7.46506423,154.51,154.42,23.776884]
[1729324171400,13.93716423,154.51,154.46,6.4739]
[1729324173119,6.4728,154.5,154.45,22.6609]
[1729324175128,7.46506423,154.51,154.45,16.1864]
[1729324175434,6.4724,154.5,154.45,16.1864]
[1729324177812,6.4724,154.5,154.45,22.6609]
[1729324178127,6.4736,154.48,154.42,23.776884]
[1729324179435,6.4736,154.48,154.44,6.4749]
[1729324179726,6.473,154.49,154.44,6.4749]
[1729324187042,6.4726,154.5,154.45,6.4742]
[1729324188450,7.46506423,154.51,154.42,56.155384]
[1729324189324,13.93746423,154.51,154.45,6.4742]
[1729324189534,6.4725,154.5,154.45,6.4742]
[1729324189853,13.93706423,154.51,154.46,6.4737]
[1729324194252,13.93706423,154.51,154.42,56.155384]
[1729324194438,7.46506423,154.51,154.48,6.4732]
[1729324198141,7.46506423,154.51,154.47,22.6577]
[1729324198962,13.93736423,154.51,154.47,16.184]
[1729324203253,6.4723,154.51,154.47,16.184]
[1729324205369,6.4723,154.51,154.46,6.4741]
[1729324205579,6.4726,154.5,154.45,22.6608]
[1729324212079,6.4721,154.51,154.47,6.4737]
[1729324212283,6.4721,154.51,154.46,16.1854]
[1729324212583,6.4721,154.51,154.46,22.6594]
[1729324214685,6.4721,154.51,154.43,32.3771]
[1729324214686,6.473,154.49,154.44,22.6625]
[1729324216263,6.4734,154.48,154.44,22.6625]
[1729324219266,6.4742,154.46,154.42,6.4757]
[1729324219475,6.4742,154.46,154.41,39.2096]
[1729324219476,6.4737,154.48,154.43,6.4752]
[1729324228214,6.474,154.47,154.42,16.1893]
[1729324229201,6.474,154.47,154.42,22.6647]
[1729324237505,6.4743,154.46,154.42,16.1893]
[1729324237909,6.4738,154.47,154.42,22.6651]
[1729324244509,6.4738,154.47,154.42,16.1893]
[1729324244705,6.4738,154.47,154.43,6.4754]
[1729324249211,6.4742,154.46,154.42,22.6651]
[1729324254826,6.475,154.44,154.39,6.4767]
[1729324255125,20.0,154.45,154.41,6.476]
[1729324256006,14.94732954,154.46,154.39,23.776884]
[1729324256205,14.94732954,154.46,154.41,22.6664]
[1729324256410,8.47302954,154.46,154.42,6.4754]
[1729324257126,8.47302954,154.46,154.43,6.4752]
[1729324257337,22.1751,154.49,154.44,6.4747]
[1729324265319,6.4733,154.48,154.44,6.4747]
[1729324266308,15.7022,154.49,154.4,16.1917]
[1729324266540,20.0,154.48,154.41,1.98876391]
[1729324266725,20.0,154.48,154.4,16.1917]
[1729324266925,20.0,154.48,154.41,1.98876234]
[1729324267238,20.0,154.48,154.4,16.1917]
[1729324267442,6.4744,154.46,154.41,6.4761]
[1729324271634,6.4744,154.46,154.4,16.1917]
[1729324271941,6.4748,154.45,154.4,16.1917]
[1729324272152,6.4748,154.45,154.4,22.6683]
[1729324272319,20.0,154.48,154.4,22.6683]
[1729324272525,6.4753,154.44,154.38,6.4771]
[1729324272724,6.4753,154.44,154.39,1.989039]
[1729324272936,6.4753,154.44,154.4,1.989039]
[1729324273144,6.4757,154.43,154.38,6.4771]
[1729324273337,6.4757,154.43,154.39,1.98911356]
[1729324273518,6.4757,154.43,154.38,6.4771]
[1729324273718,6.4757,154.43,154.39,1.98911139]
[1729324274033,6.4757,154.43,154.38,6.4771]
[1729324274239,6.4757,154.43,154.39,1.9891092]
[1729324274421,6.4757,154.43,154.38,6.4771]
[1729324274622,6.4757,154.43,154.39,1.98911496]
[1729324274935,6.4757,154.43,154.38,6.4771]
[1729324275139,6.4757,154.43,154.39,1.98908683]
[1729324275323,6.4757,154.43,154.38,6.4771]
[1729324275657,6.4757,154.43,154.39,1.98904213]
[1729324275943,6.4757,154.43,154.38,6.4771]
[1729324276423,6.4757,154.43,154.39,1.98905094]
[1729324276740,6.4757,154.43,154.38,6.4771]
[1729324276940,6.4757,154.43,154.39,1.98901485]
[1729324277137,6.4757,154.43,154.38,6.4771]
[1729324277344,6.4757,154.43,154.39,1.98897919]
[1729324277643,6.4757,154.43,154.38,6.4771]
[1729324277944,6.4757,154.43,154.39,1.98897866]
[1729324278142,6.4757,154.43,154.38,6.4771]
[1729324278448,6.4757,154.43,154.39,1.98894445]
[1729324278621,6.4757,154.43,154.38,6.4771]
[1729324279023,6.4757,154.43,154.39,1.98896346]
[1729324279214,6.4757,154.43,154.38,6.4771]
[1729324279413,6.4757,154.43,154.39,1.98891458]
[1729324279616,6.4757,154.43,154.38,6.4771]
[1729324279843,6.4757,154.43,154.39,1.98893232]
[1729324280043,6.4757,154.43,154.38,6.4771]
[1729324280245,6.4757,154.43,154.39,1.98888603]
[1729324280445,6.4757,154.43,154.38,6.4771]
[1729324280631,20.0,154.46,154.39,1.98887073]
[1729324280949,6.4761,154.42,154.37,22.6723]
[1729324281148,6.4761,154.42,154.38,1.98877459]
[1729324281316,6.4761,154.42,154.37,22.6723]
[1729324281519,6.4761,154.42,154.38,1.98868486]
[1729324281748,6.4761,154.42,154.39,1.9886729]
[1729324281955,6.4761,154.42,154.37,22.6723]
[1729324282159,6.4761,154.42,154.38,1.98867261]
[1729324282456,6.4761,154.42,154.38,6.4775]
[1729324286157,20.0,154.43,154.38,6.4775]
[1729324286357,26.4755,154.43,154.38,6.4775]
[1729324287562,16.1736,154.44,154.32,53.9887]
[1729324287742,14.7952431,154.45,154.4,6.4763]
[1729324302159,22.5539,154.48,154.4,6.4763]
[1729324302366,20.0,154.47,154.4,6.4763]
[1729324303368,6.4746,154.45,154.4,6.4763]
[1729324318264,6.4753,154.44,154.39,22.6689]
[1729324318450,6.4753,154.44,154.4,1.98890234]
[1729324318652,6.4753,154.44,154.39,22.6689]
[1729324321080,6.4753,154.44,154.4,1.98930949]
[1729324321263,6.4753,154.44,154.39,22.6689]
[1729324321579,6.4753,154.44,154.4,1.98943564]
[1729324321752,6.4753,154.44,154.39,22.6689]
[1729324321952,6.4753,154.44,154.4,1.98948632]
[1729324322169,6.4753,154.44,154.39,22.6689]
[1729324322476,6.4753,154.44,154.4,1.98970388]
[1729324322670,6.4753,154.44,154.39,22.6689]
[1729324322879,6.4753,154.44,154.4,1.98973188]
[1729324323070,6.4753,154.44,154.39,22.6689]
[1729324323373,6.4753,154.44,154.4,1.98999226]
[1729324323672,6.4753,154.44,154.39,22.6689]
[1729324323873,6.4753,154.44,154.4,1.99002882]
[1729324324049,6.4753,154.44,154.39,22.6689]
[1729324324251,6.4753,154.44,154.4,1.99037407]
[1729324324475,6.4753,154.44,154.39,22.6689]
[1729324324666,6.4753,154.44,154.4,1.99039531]
[1729324324870,6.4753,154.44,154.39,22.6689]
[1729324325075,6.4753,154.44,154.4,1.99039536]
[1729324325250,6.4753,154.44,154.39,22.6689]
[1729324325454,12.8256636,154.45,154.4,8.46709341]
[1729324325655,12.8256636,154.45,154.4,6.4763]
[1729324326477,6.475,154.44,154.41,1.99122399]
[1729324326654,6.475,154.44,154.4,6.4763]
[1729324327180,6.475,154.44,154.41,1.99130038]
[1729324327383,6.475,154.44,154.4,6.4763]
[1729324328785,6.475,154.44,154.41,1.99142664]
[1729324329082,6.475,154.44,154.4,6.4763]
[1729324329384,6.475,154.44,154.41,1.99151164]
[1729324329682,6.475,154.44,154.4,6.4763]
[1729324329887,6.475,154.44,154.41,1.9915349]
[1729324330055,6.475,154.44,154.4,6.4763]
[1729324330375,6.475,154.44,154.41,1.99160701]
[1729324330578,12.8254636,154.45,154.4,6.4763]
[1729324330783,6.3508636,154.45,154.42,6.4757]
[1729324332480,6.4742,154.46,154.42,6.4757]
[1729324340372,20.0,154.47,154.42,6.4757]
[1729324340573,26.4738,154.47,154.42,6.4757]
[1729324343597,20.0,154.47,154.43,6.475]
[1729324343776,22.647,154.48,154.43,6.475]
[1729324353233,6.4734,154.48,154.43,6.475]
[1729324368917,6.4734,154.48,154.4,23.776884]
[1729324369118,38.2801,154.52,154.44,6.4748]
[1729324369424,6.4729,154.49,154.44,6.4748]
[1729324370701,6.4729,154.49,154.41,22.0876]
[1729324370914,15.8084,154.52,154.42,25.76568436]
[1729324371215,22.2804,154.52,154.47,6.4734]
[1729324371421,6.472,154.52,154.47,6.4734]
[1729324375755,6.4713,154.53,154.48,6.4732]
[1729324376724,20.0,154.55,154.49,16.1815]
[1729324377706,6.4712,154.53,154.49,22.6543]
[1729324378921,6.4712,154.53,154.49,16.1815]
[1729324382827,6.4712,154.53,154.48,6.4732]
[1729324390238,6.4712,154.53,154.46,16.185]
[1729324390239,12.72513833,154.54,154.49,6.4727]
[1729324390528,6.25423833,154.54,154.5,6.4721]
[1729324397541,6.25423833,154.54,154.49,16.1816]
[1729324397721,12.72543833,154.54,154.49,22.6544]
[1729324401442,6.4716,154.52,154.47,6.4733]
[1729324402332,26.4713,154.53,154.48,6.4732]
[1729324404443,20.0,154.53,154.47,16.1841]
[1729324404634,6.4721,154.51,154.47,16.1841]
[1729324413456,6.4717,154.52,154.47,22.6578]
[1729324413952,6.4717,154.52,154.47,16.1841]
[1729324414154,6.4717,154.52,154.48,6.4732]
[1729324415543,26.4712,154.53,154.48,6.4732]
[1729324415844,26.4712,154.53,154.49,6.4728]
[1729324422862,26.4712,154.53,154.48,22.6563]
[1729324423457,20.0,154.53,154.48,16.1831]
[1729324423655,6.4718,154.52,154.48,16.1831]
[1729324443381,20.0,154.53,154.48,16.1831]
[1729324443682,6.4717,154.52,154.48,16.1831]
[1729324461578,6.4745,154.46,154.41,6.4762]
[1729324461779,6.4737,154.47,154.42,8.46704442]
[1729324461997,6.4737,154.47,154.43,1.99134442]
[1729324462175,6.4737,154.47,154.42,6.4757]
[1729324472599,6.4737,154.47,154.38,23.1138]
[1729324472809,6.4737,154.47,154.39,25.76211112]
[1729324473120,6.4737,154.47,154.39,23.776884]
[1729324473703,6.4737,154.47,154.42,6.4754]
[1729324473905,20.0,154.49,154.44,6.4749]
[1729324474209,26.4733,154.49,154.44,6.4749]
[1729324474583,6.4734,154.48,154.44,6.4749]
[1729324476895,6.4732,154.49,154.44,6.4749]
[1729324478196,6.4732,154.49,154.43,16.1885]
[1729324478197,26.4725,154.5,154.46,6.4741]
[1729324478380,26.4725,154.5,154.45,16.1864]
[1729324478381,6.4725,154.5,154.45,22.6608]
[1729324481209,6.4721,154.51,154.46,6.4739]
[1729324481788,6.4717,154.52,154.47,6.4735]
[1729324499633,6.472,154.51,154.47,6.4735]
[1729324499831,6.473,154.49,154.44,6.4749]
[1729324500935,6.4734,154.48,154.43,22.663]
[1729324508744,15.2552,154.51,154.43,16.188]
[1729324508942,6.4738,154.47,154.43,16.188]